[Event "Late-Titled-Tuesday-Blitz-September-12-2023"]
[Site "Chess.com"]
[Date "2023.09.12"]
[Round "3"]
[White "Cirky"]
[Black "Athanasios2"]
[Result "0-1"]
[WhiteElo "2471"]
[BlackElo "2704"]
[TimeControl "180+1"]
[EndTime "14:28:57 PDT"]
[Termination "Athanasios2 won on time"]

1. d4 {[%clk 0:02:59.5]} 1... Nf6 {[%clk 0:02:59.6]} 2. c4 {[%clk 0:02:58.4]}
2... g6 {[%clk 0:02:59.6]} 3. h4 {[%clk 0:02:53.2]} 3... c5 {[%clk 0:02:54.1]}
4. d5 {[%clk 0:02:53.2]} 4... d6 {[%clk 0:02:53.1]} 5. Nc3 {[%clk 0:02:49.3]}
5... Bg7 {[%clk 0:02:50.7]} 6. e4 {[%clk 0:02:48.5]} 6... Nbd7 {[%clk 0:02:43]}
7. Be2 {[%clk 0:02:46.2]} 7... h5 {[%clk 0:02:42.1]} 8. Bg5 {[%clk 0:02:37.4]}
8... Qa5 {[%clk 0:02:40.6]} 9. Qd2 {[%clk 0:02:36.5]} 9... a6 {[%clk 0:02:38]}
10. Nf3 {[%clk 0:02:35.4]} 10... Qc7 {[%clk 0:02:36.5]} 11. O-O {[%clk
0:02:34.1]} 11... O-O {[%clk 0:02:35.7]} 12. Rfe1 {[%clk 0:02:34.1]} 12... Re8
{[%clk 0:02:35.6]} 13. a4 {[%clk 0:02:29.6]} 13... Ng4 {[%clk 0:02:35.5]} 14.
Bf1 {[%clk 0:02:27.3]} 14... Nf8 {[%clk 0:02:29.8]} 15. g3 {[%clk 0:01:54.5]}
15... Nh7 {[%clk 0:02:28.6]} 16. Bf4 {[%clk 0:01:51]} 16... Bd7 {[%clk
0:02:16.6]} 17. Bg2 {[%clk 0:01:44.2]} 17... Rad8 {[%clk 0:02:11.6]} 18. Ng5
{[%clk 0:01:31.9]} 18... Bd4 {[%clk 0:02:02.6]} 19. Re2 {[%clk 0:01:30.4]} 19...
Nxg5 {[%clk 0:02:01]} 20. Bxg5 {[%clk 0:01:30.4]} 20... Rc8 {[%clk 0:01:49.5]}
21. Kf1 {[%clk 0:00:48.8]} 21... e6 {[%clk 0:01:33.4]} 22. dxe6 {[%clk
0:00:38.6]} 22... Bxe6 {[%clk 0:01:34.3]} 23. b3 {[%clk 0:00:37.2]} 23... Qa5
{[%clk 0:01:27.9]} 24. Rc1 {[%clk 0:00:36.9]} 24... Qb4 {[%clk 0:01:28.3]} 25.
Qc2 {[%clk 0:00:34]} 25... Ne5 {[%clk 0:01:09.9]} 26. Rd2 {[%clk 0:00:30.4]}
26... Kg7 {[%clk 0:00:46.8]} 27. Nd5 {[%clk 0:00:28.1]} 27... Bxd5 {[%clk
0:00:45.9]} 28. exd5 {[%clk 0:00:28.1]} 28... b5 {[%clk 0:00:44.8]} 29. axb5
{[%clk 0:00:28]} 29... axb5 {[%clk 0:00:45.3]} 30. Bf4 {[%clk 0:00:25.7]} 30...
bxc4 {[%clk 0:00:43]} 31. bxc4 {[%clk 0:00:26]} 31... Ng4 {[%clk 0:00:41.5]} 32.
Re2 {[%clk 0:00:24.6]} 32... Be5 {[%clk 0:00:35.7]} 33. Bg5 {[%clk 0:00:19.1]}
33... Bf6 {[%clk 0:00:31.4]} 34. Bd2 {[%clk 0:00:19.1]} 34... Qa3 {[%clk
0:00:27.9]} 35. Rb1 {[%clk 0:00:14.8]} 35... Rxe2 {[%clk 0:00:24]} 36. Kxe2
{[%clk 0:00:14.9]} 36... Bd4 {[%clk 0:00:23.3]} 37. Be1 {[%clk 0:00:11.9]} 37...
Nh2 {[%clk 0:00:18.8]} 38. Be4 {[%clk 0:00:09.9]} 38... Re8 {[%clk 0:00:18.5]}
39. Kd1 {[%clk 0:00:10.2]} 39... Re7 {[%clk 0:00:14.3]} 40. Bd3 {[%clk
0:00:10.4]} 40... Nf3 {[%clk 0:00:13.3]} 41. Bd2 {[%clk 0:00:08.3]} 41... Nxd2
{[%clk 0:00:10.1]} 42. Qxd2 {[%clk 0:00:09]} 42... Qa4+ {[%clk 0:00:09.8]} 43.
Bc2 {[%clk 0:00:08.6]} 43... Qa3 {[%clk 0:00:09.8]} 44. Bd3 {[%clk 0:00:04.7]}
44... Bc3 {[%clk 0:00:06.2]} 45. Qf4 {[%clk 0:00:03.2]} 45... Be5 {[%clk
0:00:06.4]} 46. Qd2 {[%clk 0:00:03.1]} 46... Ra7 {[%clk 0:00:05.7]} 47. Qc2
{[%clk 0:00:02.7]} 47... Qa6 {[%clk 0:00:05.3]} 48. Ke2 {[%clk 0:00:03.1]} 48...
Qc8 {[%clk 0:00:05.6]} 49. Kf1 {[%clk 0:00:03.7]} 49... Qg4 {[%clk 0:00:06.1]}
50. Kg1 {[%clk 0:00:04.4]} 50... Bxg3 {[%clk 0:00:05.4]} 51. fxg3 {[%clk
0:00:04.2]} 51... Qxg3+ {[%clk 0:00:06.3]} 52. Kf1 {[%clk 0:00:04.6]} 52... Ra3
{[%clk 0:00:06.8]} 53. Be2 {[%clk 0:00:04.8]} 53... Re3 {[%clk 0:00:06.7]} 54.
Rb7 {[%clk 0:00:04.1]} 54... Qxh4 {[%clk 0:00:05.9]} 55. Qd2 {[%clk 0:00:04.1]}
55... Qf4+ {[%clk 0:00:06.2]} 56. Ke1 {[%clk 0:00:04.3]} 56... Qg3+ {[%clk
0:00:06.2]} 57. Kd1 {[%clk 0:00:04.6]} 57... Qg1+ {[%clk 0:00:05.7]} 58. Kc2
{[%clk 0:00:04.5]} 58... Re5 {[%clk 0:00:05.2]} 59. Rb3 {[%clk 0:00:03.4]} 59...
Qf2 {[%clk 0:00:04.9]} 60. Kd1 {[%clk 0:00:01.1]} 60... h4 {[%clk 0:00:04.3]}
61. Qe1 {[%clk 0:00:01.3]} 61... Qd4+ {[%clk 0:00:03.9]} 62. Qd2 {[%clk
0:00:01.9]} 62... Qxd2+ {[%clk 0:00:03.9]} 63. Kxd2 {[%clk 0:00:02.8]} 63... f5
{[%clk 0:00:04.5]} 64. Rf3 {[%clk 0:00:03.3]} 64... g5 {[%clk 0:00:04.8]} 65.
Re3 {[%clk 0:00:04]} 65... Kg6 {[%clk 0:00:04.4]} 66. Rxe5 {[%clk 0:00:04.4]}
66... dxe5 {[%clk 0:00:05]} 67. Ke3 {[%clk 0:00:04.6]} 67... Kf6 {[%clk
0:00:05.6]} 68. Bd1 {[%clk 0:00:05.2]} 68... g4 {[%clk 0:00:06.2]} 69. Bc2
{[%clk 0:00:05.2]} 69... h3 {[%clk 0:00:06.6]} 70. Kf2 {[%clk 0:00:05.6]} 70...
f4 {[%clk 0:00:06.5]} 71. Be4 {[%clk 0:00:06.2]} 71... Kg5 {[%clk 0:00:04.8]}
72. Kg1 {[%clk 0:00:06.8]} 72... g3 {[%clk 0:00:04.7]} 73. d6 {[%clk 0:00:07.1]}
73... Kf6 {[%clk 0:00:05.1]} 74. d7 {[%clk 0:00:07.6]} 74... Ke7 {[%clk
0:00:05.6]} 75. Bf5 {[%clk 0:00:08.3]} 75... h2+ {[%clk 0:00:05]} 76. Kg2 {[%clk
0:00:08.4]} 76... f3+ {[%clk 0:00:05.6]} 77. Kh1 {[%clk 0:00:06.4]} 77... f2
{[%clk 0:00:02.7]} 78. Kg2 {[%clk 0:00:04]} 78... f1=Q+ {[%clk 0:00:01.9]} 79.
Kxf1 {[%clk 0:00:04.6]} 79... h1=Q+ {[%clk 0:00:02.4]} 80. Ke2 {[%clk
0:00:05.4]} 80... Qg2+ {[%clk 0:00:03]} 81. Ke3 {[%clk 0:00:06.1]} 81... Qf2+
{[%clk 0:00:03.6]} 82. Ke4 {[%clk 0:00:06.8]} 82... Qf4+ {[%clk 0:00:04.3]} 83.
Kd5 {[%clk 0:00:07.2]} 83... Qxf5 {[%clk 0:00:04.7]} 84. d8=Q+ {[%clk
0:00:07.6]} 84... Kxd8 {[%clk 0:00:04.8]} 0-1

[Event "Late-Titled-Tuesday-Blitz-September-12-2023"]
[Site "Chess.com"]
[Date "2023.09.12"]
[Round "3"]
[White "likantrophuss"]
[Black "Truequitos"]
[Result "1/2-1/2"]
[WhiteElo "2600"]
[BlackElo "2440"]
[TimeControl "180+1"]
[EndTime "14:28:59 PDT"]
[Termination "Game drawn - insufficient material"]

1. Nf3 {[%clk 0:02:51.8]} 1... Nf6 {[%clk 0:02:57.6]} 2. g3 {[%clk 0:02:49]}
2... d6 {[%clk 0:02:58.1]} 3. d4 {[%clk 0:02:48.5]} 3... g6 {[%clk 0:02:54.5]}
4. b3 {[%clk 0:02:48.6]} 4... Bf5 {[%clk 0:02:54.3]} 5. Bb2 {[%clk 0:02:49.3]}
5... Bg7 {[%clk 0:02:53.7]} 6. Nbd2 {[%clk 0:02:49.6]} 6... Ne4 {[%clk
0:02:53.8]} 7. Bg2 {[%clk 0:02:49.7]} 7... c6 {[%clk 0:02:46.6]} 8. Nh4 {[%clk
0:02:47.6]} 8... Nxd2 {[%clk 0:02:46.2]} 9. Qxd2 {[%clk 0:02:48.5]} 9... Bd7
{[%clk 0:02:41.5]} 10. O-O {[%clk 0:02:46.3]} 10... O-O {[%clk 0:02:42]} 11. c4
{[%clk 0:02:46.4]} 11... a5 {[%clk 0:02:38.1]} 12. f4 {[%clk 0:02:39.6]} 12...
Qc7 {[%clk 0:02:27.6]} 13. f5 {[%clk 0:02:36.9]} 13... Na6 {[%clk 0:02:16.5]}
14. d5 {[%clk 0:02:34]} 14... Bxb2 {[%clk 0:01:40.7]} 15. Qxb2 {[%clk
0:02:34.9]} 15... cxd5 {[%clk 0:01:40.8]} 16. Bxd5 {[%clk 0:02:34.1]} 16... Bc6
{[%clk 0:01:39.8]} 17. Rad1 {[%clk 0:02:30.9]} 17... Bxd5 {[%clk 0:01:38.9]} 18.
Rxd5 {[%clk 0:02:31]} 18... e6 {[%clk 0:01:21]} 19. Rdd1 {[%clk 0:02:02.3]}
19... exf5 {[%clk 0:01:16.6]} 20. Qf6 {[%clk 0:02:02.6]} 20... Qc5+ {[%clk
0:01:07.5]} 21. Kg2 {[%clk 0:01:56.8]} 21... Qe5 {[%clk 0:01:00.4]} 22. Rxd6
{[%clk 0:01:46.2]} 22... Qxe2+ {[%clk 0:00:49.1]} 23. Rf2 {[%clk 0:01:43.4]}
23... Qe4+ {[%clk 0:00:49.3]} 24. Rf3 {[%clk 0:01:33.4]} 24... Nc5 {[%clk
0:00:48.1]} 25. Rd4 {[%clk 0:00:39.2]} 25... Qe6 {[%clk 0:00:33.5]} 26. Qxe6
{[%clk 0:00:34.9]} 26... Nxe6 {[%clk 0:00:34.4]} 27. Rd7 {[%clk 0:00:33.6]}
27... Rfb8 {[%clk 0:00:33.8]} 28. Re3 {[%clk 0:00:31.7]} 28... b5 {[%clk
0:00:32.2]} 29. cxb5 {[%clk 0:00:29.5]} 29... Rxb5 {[%clk 0:00:31.6]} 30. Nf3
{[%clk 0:00:24.8]} 30... f4 {[%clk 0:00:20.5]} 31. gxf4 {[%clk 0:00:23.5]} 31...
Nxf4+ {[%clk 0:00:19.8]} 32. Kf2 {[%clk 0:00:21.4]} 32... Ne6 {[%clk 0:00:17.3]}
33. Ne5 {[%clk 0:00:20.2]} 33... a4 {[%clk 0:00:16.5]} 34. Kg3 {[%clk
0:00:16.6]} 34... axb3 {[%clk 0:00:14.9]} 35. axb3 {[%clk 0:00:17.5]} 35... Ra3
{[%clk 0:00:15]} 36. Nxf7 {[%clk 0:00:17.1]} 36... Raxb3 {[%clk 0:00:13.8]} 37.
Nh6+ {[%clk 0:00:17.4]} 37... Kf8 {[%clk 0:00:09]} 38. Rf7+ {[%clk 0:00:16.5]}
38... Ke8 {[%clk 0:00:09.5]} 39. Rff3 {[%clk 0:00:16.6]} 39... Rxe3 {[%clk
0:00:08.9]} 40. Rxe3 {[%clk 0:00:17.5]} 40... Kd7 {[%clk 0:00:09.4]} 41. Ng4
{[%clk 0:00:17.7]} 41... h5 {[%clk 0:00:07.8]} 42. Ne5+ {[%clk 0:00:17.6]} 42...
Kd6 {[%clk 0:00:06.5]} 43. Nxg6 {[%clk 0:00:18.5]} 43... Rg5+ {[%clk 0:00:06.1]}
44. Kh4 {[%clk 0:00:17.5]} 44... Rxg6 {[%clk 0:00:06.7]} 45. Kxh5 {[%clk
0:00:16.5]} 45... Rg2 {[%clk 0:00:06.9]} 46. Rd3+ {[%clk 0:00:12.4]} 46... Ke5
{[%clk 0:00:06.6]} 47. Kh4 {[%clk 0:00:11]} 47... Kf4 {[%clk 0:00:04.4]} 48. Rg3
{[%clk 0:00:09.6]} 48... Rxh2+ {[%clk 0:00:04.3]} 49. Rh3 {[%clk 0:00:10.2]}
49... Rg2 {[%clk 0:00:04.5]} 50. Rh1 {[%clk 0:00:10]} 50... Ng5 {[%clk
0:00:04.1]} 51. Rf1+ {[%clk 0:00:10.4]} 51... Nf3+ {[%clk 0:00:04.8]} 52. Kh5
{[%clk 0:00:10.5]} 52... Rg5+ {[%clk 0:00:05.2]} 53. Kh6 {[%clk 0:00:10.8]}
53... Rg2 {[%clk 0:00:04.8]} 54. Kh5 {[%clk 0:00:10.6]} 54... Rg3 {[%clk
0:00:05]} 55. Kh6 {[%clk 0:00:10.8]} 55... Kf5 {[%clk 0:00:05.4]} 56. Kh7 {[%clk
0:00:09.4]} 56... Kf6 {[%clk 0:00:05.8]} 57. Rb1 {[%clk 0:00:08.7]} 57... Ng5+
{[%clk 0:00:03.6]} 58. Kg8 {[%clk 0:00:07.1]} 58... Ne6+ {[%clk 0:00:03.8]} 59.
Kh7 {[%clk 0:00:06.8]} 59... Rh3+ {[%clk 0:00:03.4]} 60. Kg8 {[%clk 0:00:06.8]}
60... Rg3+ {[%clk 0:00:04]} 61. Kh7 {[%clk 0:00:06.5]} 61... Rg7+ {[%clk
0:00:04]} 62. Kh6 {[%clk 0:00:06.6]} 62... Rg8 {[%clk 0:00:04.6]} 63. Rf1+
{[%clk 0:00:06.7]} 63... Ke5 {[%clk 0:00:04]} 64. Re1+ {[%clk 0:00:05.6]} 64...
Kf5 {[%clk 0:00:03.7]} 65. Kh7 {[%clk 0:00:06.1]} 65... Rg7+ {[%clk 0:00:03.4]}
66. Kh8 {[%clk 0:00:06.4]} 66... Rg5 {[%clk 0:00:04.1]} 67. Rf1+ {[%clk
0:00:06]} 67... Kg6 {[%clk 0:00:04.1]} 68. Rb1 {[%clk 0:00:06.9]} 68... Rh5+
{[%clk 0:00:01.8]} 69. Kg8 {[%clk 0:00:07]} 69... Kf6 {[%clk 0:00:02.7]} 70.
Rf1+ {[%clk 0:00:06.8]} 70... Ke7 {[%clk 0:00:03]} 71. Rf7+ {[%clk 0:00:06.5]}
71... Kd6 {[%clk 0:00:02.5]} 72. Rf1 {[%clk 0:00:07.4]} 72... Ke5 {[%clk
0:00:03]} 73. Re1+ {[%clk 0:00:07.3]} 73... Kf6 {[%clk 0:00:03.3]} 74. Rf1+
{[%clk 0:00:07.6]} 74... Kg6 {[%clk 0:00:04]} 75. Ra1 {[%clk 0:00:03.4]} 75...
Rc5 {[%clk 0:00:02.8]} 76. Rg1+ {[%clk 0:00:02.1]} 76... Ng5 {[%clk 0:00:02.3]}
77. Kf8 {[%clk 0:00:02.1]} 77... Rc7 {[%clk 0:00:02.6]} 78. Ke8 {[%clk
0:00:02.1]} 78... Rf7 {[%clk 0:00:02.6]} 79. Rxg5+ {[%clk 0:00:01.3]} 79... Kxg5
{[%clk 0:00:03.5]} 80. Kxf7 {[%clk 0:00:01.9]} 1/2-1/2

[Event "Late-Titled-Tuesday-Blitz-September-12-2023"]
[Site "Chess.com"]
[Date "2023.09.12"]
[Round "3"]
[White "chessisveryfun1264"]
[Black "Vladimir_Zakhartsov"]
[Result "0-1"]
[WhiteElo "2539"]
[BlackElo "2880"]
[TimeControl "180+1"]
[EndTime "14:29:11 PDT"]
[Termination "Vladimir_Zakhartsov won by resignation"]

1. e4 {[%clk 0:03:00.9]} 1... c5 {[%clk 0:02:43.4]} 2. Nf3 {[%clk 0:02:57]} 2...
d6 {[%clk 0:02:42.6]} 3. d4 {[%clk 0:02:57.5]} 3... cxd4 {[%clk 0:02:42.1]} 4.
Qxd4 {[%clk 0:02:58.4]} 4... Bd7 {[%clk 0:02:37.3]} 5. c4 {[%clk 0:02:56.2]}
5... Nc6 {[%clk 0:02:37.2]} 6. Qe3 {[%clk 0:02:56.8]} 6... Nf6 {[%clk
0:02:36.5]} 7. Nc3 {[%clk 0:02:57.2]} 7... g6 {[%clk 0:02:35.8]} 8. Be2 {[%clk
0:02:57.4]} 8... Bg7 {[%clk 0:02:35.9]} 9. O-O {[%clk 0:02:56.8]} 9... O-O
{[%clk 0:02:34.8]} 10. Rb1 {[%clk 0:02:56.7]} 10... Rc8 {[%clk 0:02:32.4]} 11.
b3 {[%clk 0:02:56.7]} 11... a6 {[%clk 0:02:31.1]} 12. Bb2 {[%clk 0:02:56.7]}
12... e6 {[%clk 0:02:24.4]} 13. Rfd1 {[%clk 0:02:56]} 13... Qc7 {[%clk
0:02:23.4]} 14. Rbc1 {[%clk 0:02:55.1]} 14... Rfd8 {[%clk 0:02:22.2]} 15. Qd2
{[%clk 0:02:52.3]} 15... Be8 {[%clk 0:02:19.7]} 16. Bd3 {[%clk 0:02:39.6]} 16...
Qb8 {[%clk 0:02:14.5]} 17. Ne2 {[%clk 0:02:33.7]} 17... Ne5 {[%clk 0:02:12.4]}
18. Nxe5 {[%clk 0:02:26.3]} 18... dxe5 {[%clk 0:02:13.3]} 19. Qe3 {[%clk
0:02:22.2]} 19... h5 {[%clk 0:01:44.9]} 20. Ba3 {[%clk 0:02:16.3]} 20... Ng4
{[%clk 0:01:38.6]} 21. Qf3 {[%clk 0:02:16.4]} 21... Qa7 {[%clk 0:01:37.8]} 22.
h3 {[%clk 0:02:11.2]} 22... Nh6 {[%clk 0:01:21.8]} 23. c5 {[%clk 0:01:54]} 23...
Bf8 {[%clk 0:01:11.8]} 24. Qe3 {[%clk 0:01:45.6]} 24... Bc6 {[%clk 0:01:03.4]}
25. Qg5 {[%clk 0:01:36.4]} 25... Qb8 {[%clk 0:00:52.4]} 26. Ng3 {[%clk
0:01:35.4]} 26... Bg7 {[%clk 0:00:50.9]} 27. Be2 {[%clk 0:01:31.1]} 27... Kh7
{[%clk 0:00:49.7]} 28. Rd6 {[%clk 0:01:22.7]} 28... f6 {[%clk 0:00:42]} 29. Qe3
{[%clk 0:01:22.7]} 29... Nf7 {[%clk 0:00:41.8]} 30. Rxe6 {[%clk 0:01:20.5]}
30... Bh6 {[%clk 0:00:41.6]} 31. Qf3 {[%clk 0:01:17.4]} 31... Bf4 {[%clk
0:00:25.3]} 32. Nxh5 {[%clk 0:01:05.9]} 32... gxh5 {[%clk 0:00:24.6]} 33. Qxh5+
{[%clk 0:01:06.8]} 33... Kg7 {[%clk 0:00:22.3]} 34. Re7 {[%clk 0:01:03.9]} 34...
Rf8 {[%clk 0:00:22.5]} 35. Qg4+ {[%clk 0:00:57.1]} 35... Kh8 {[%clk 0:00:21.1]}
36. Qg6 {[%clk 0:00:51.3]} 36... Rc7 {[%clk 0:00:09.2]} 37. Qxf6+ {[%clk
0:00:50.6]} 37... Kg8 {[%clk 0:00:09.8]} 38. Qg6+ {[%clk 0:00:50.1]} 38... Kh8
{[%clk 0:00:10.3]} 39. Qh5+ {[%clk 0:00:47]} 39... Kg8 {[%clk 0:00:09.8]} 40.
Re6 {[%clk 0:00:46.5]} 40... Bxe4 {[%clk 0:00:07.4]} 41. Bc4 {[%clk 0:00:25.9]}
41... Rc6 {[%clk 0:00:06.8]} 42. Qg4+ {[%clk 0:00:20.9]} 42... Kh8 {[%clk
0:00:05.7]} 43. Qh5+ {[%clk 0:00:20.9]} 43... Nh6 {[%clk 0:00:05.8]} 44. Rd1
{[%clk 0:00:16.6]} 44... Rxe6 {[%clk 0:00:05.6]} 45. Bxe6 {[%clk 0:00:17.5]}
45... Qe8 {[%clk 0:00:06]} 46. Qh4 {[%clk 0:00:12.2]} 46... Qxe6 {[%clk
0:00:05.4]} 47. Rd6 {[%clk 0:00:13]} 47... Qf5 {[%clk 0:00:04.2]} 48. c6 {[%clk
0:00:11.8]} 48... bxc6 {[%clk 0:00:02.8]} 49. Rxh6+ {[%clk 0:00:12.1]} 49...
Bxh6 {[%clk 0:00:03.5]} 50. Qxh6+ {[%clk 0:00:12.7]} 50... Kg8 {[%clk
0:00:04.1]} 51. Bxf8 {[%clk 0:00:09.2]} 51... Qxf8 {[%clk 0:00:05]} 52. Qg5+
{[%clk 0:00:09.3]} 52... Qg7 {[%clk 0:00:04.8]} 53. Qd8+ {[%clk 0:00:08.6]}
53... Kf7 {[%clk 0:00:05.1]} 54. Qd7+ {[%clk 0:00:07.8]} 54... Kf6 {[%clk
0:00:04.9]} 55. Qd6+ {[%clk 0:00:08]} 55... Kf5 {[%clk 0:00:03]} 56. g4+ {[%clk
0:00:08.4]} 56... Kg5 {[%clk 0:00:03]} 57. Qd8+ {[%clk 0:00:07.2]} 57... Kg6
{[%clk 0:00:03.2]} 58. Qd6+ {[%clk 0:00:07]} 58... Kh7 {[%clk 0:00:03.5]} 59.
Qe6 {[%clk 0:00:03.7]} 59... Bd5 {[%clk 0:00:02.2]} 60. Qd6 {[%clk 0:00:03.8]}
60... Qf7 {[%clk 0:00:02.2]} 61. Qxe5 {[%clk 0:00:04]} 61... Qf3 {[%clk
0:00:02.7]} 62. Qe7+ {[%clk 0:00:04]} 62... Kg6 {[%clk 0:00:03.1]} 63. Qe8+
{[%clk 0:00:03.9]} 63... Kf6 {[%clk 0:00:03.7]} 64. Qf8+ {[%clk 0:00:03.7]}
64... Ke5 {[%clk 0:00:03.5]} 65. Qxf3 {[%clk 0:00:04.6]} 65... Bxf3 {[%clk
0:00:03.7]} 66. Kh2 {[%clk 0:00:04.6]} 66... Kf4 {[%clk 0:00:04]} 67. b4 {[%clk
0:00:04.3]} 67... Bd5 {[%clk 0:00:03.1]} 68. a3 {[%clk 0:00:04.5]} 68... Bf3
{[%clk 0:00:03.4]} 69. Kg1 {[%clk 0:00:04]} 69... Be4 {[%clk 0:00:03.3]} 70. Kh2
{[%clk 0:00:04.2]} 70... Kf3 {[%clk 0:00:03.1]} 71. Kg1 {[%clk 0:00:04.1]} 71...
Bd3 {[%clk 0:00:03.2]} 72. g5 {[%clk 0:00:04.2]} 72... Kf4 {[%clk 0:00:03.1]}
73. h4 {[%clk 0:00:04.2]} 73... Kg4 {[%clk 0:00:03.5]} 74. f3+ {[%clk
0:00:02.5]} 74... Kxf3 {[%clk 0:00:03.2]} 75. h5 {[%clk 0:00:01.7]} 75... Kg4
{[%clk 0:00:03.4]} 76. g6 {[%clk 0:00:02.6]} 76... Kxh5 {[%clk 0:00:02.9]} 77.
g7 {[%clk 0:00:03.5]} 77... Bc4 {[%clk 0:00:03.2]} 78. Kf2 {[%clk 0:00:04.4]}
78... Kg6 {[%clk 0:00:03.4]} 79. Ke3 {[%clk 0:00:05.3]} 79... Kxg7 {[%clk
0:00:03.6]} 80. Kd4 {[%clk 0:00:06.2]} 80... Bb5 {[%clk 0:00:04]} 81. Kc5 {[%clk
0:00:07.1]} 81... Kf6 {[%clk 0:00:04.2]} 82. Kb6 {[%clk 0:00:07.9]} 82... Ke5
{[%clk 0:00:04.3]} 83. Ka5 {[%clk 0:00:08.8]} 83... Kd5 {[%clk 0:00:04.3]} 84.
a4 {[%clk 0:00:09.7]} 84... Kc4 {[%clk 0:00:04.5]} 85. axb5 {[%clk 0:00:06.9]}
85... axb5 {[%clk 0:00:05.4]} 86. Ka6 {[%clk 0:00:07.8]} 86... Kxb4 {[%clk
0:00:05.6]} 87. Kb6 {[%clk 0:00:08.7]} 87... Kc4 {[%clk 0:00:06]} 88. Kxc6
{[%clk 0:00:09.6]} 88... b4 {[%clk 0:00:06.9]} 0-1